[Event "Early-Titled-Tuesday-Blitz-October-03-2023"]
[Site "Chess.com"]
[Date "2023.10.03"]
[Round "7"]
[White "Ranindu2003"]
[Black "CarlosjPineror"]
[Result "1-0"]
[WhiteElo "2722"]
[BlackElo "2504"]
[TimeControl "180+1"]
[EndTime "9:18:59 PDT"]
[Termination "Ranindu2003 won by resignation"]

1. e4 {[%clk 0:02:51.7]} 1... c5 {[%clk 0:02:50.6]} 2. c3 {[%clk 0:02:51.6]}
2... Nf6 {[%clk 0:02:49.7]} 3. e5 {[%clk 0:02:51.4]} 3... Nd5 {[%clk 0:02:50.1]}
4. Nf3 {[%clk 0:02:52.1]} 4... e6 {[%clk 0:02:50.1]} 5. d4 {[%clk 0:02:51.8]}
5... cxd4 {[%clk 0:02:51]} 6. cxd4 {[%clk 0:02:52.3]} 6... b6 {[%clk 0:02:50.6]}
7. Bd3 {[%clk 0:02:51.4]} 7... Bb7 {[%clk 0:02:50.1]} 8. Nc3 {[%clk 0:02:50.9]}
8... Nxc3 {[%clk 0:02:49.8]} 9. bxc3 {[%clk 0:02:51.8]} 9... Qc7 {[%clk
0:02:50.4]} 10. O-O {[%clk 0:02:49.8]} 10... Nc6 {[%clk 0:02:50.6]} 11. Bf4
{[%clk 0:02:42.8]} 11... f5 {[%clk 0:02:49.1]} 12. d5 {[%clk 0:02:22]} 12... Na5
{[%clk 0:02:46.7]} 13. c4 {[%clk 0:02:17.5]} 13... Bc5 {[%clk 0:02:45.9]} 14.
Ng5 {[%clk 0:02:02.8]} 14... O-O-O {[%clk 0:02:25.3]} 15. Nf7 {[%clk 0:01:59]}
15... Kb8 {[%clk 0:02:17.1]} 16. Nxd8 {[%clk 0:01:52.3]} 16... Qxd8 {[%clk
0:02:16]} 17. Qd2 {[%clk 0:01:43.4]} 17... h6 {[%clk 0:02:14.9]} 18. Be3 {[%clk
0:01:43.3]} 18... Qc7 {[%clk 0:02:10.3]} 19. Rab1 {[%clk 0:01:39.4]} 19... Bxe3
{[%clk 0:02:01.2]} 20. Qxe3 {[%clk 0:01:40.3]} 20... Nxc4 {[%clk 0:02:00.6]} 21.
Bxc4 {[%clk 0:01:32.2]} 21... Qxc4 {[%clk 0:02:01.5]} 22. dxe6 {[%clk 0:01:32]}
22... dxe6 {[%clk 0:01:55]} 23. Rbc1 {[%clk 0:01:30.4]} 23... Qxa2 {[%clk
0:01:46.1]} 24. Rfd1 {[%clk 0:01:30]} 24... Qa4 {[%clk 0:01:29.7]} 25. Qc3
{[%clk 0:01:12.8]} 25... Rc8 {[%clk 0:01:17.6]} 26. Rd8 {[%clk 0:01:11.6]} 26...
a5 {[%clk 0:00:15.5]} 27. Rxc8+ {[%clk 0:01:10.1]} 27... Ka7 {[%clk 0:00:15.9]}
28. Rc7 {[%clk 0:01:06.5]} 28... Qe4 {[%clk 0:00:14.8]} 29. Qf3 {[%clk
0:01:04.8]} 29... Qxf3 {[%clk 0:00:12.3]} 30. gxf3 {[%clk 0:01:04.5]} 30... Ka6
{[%clk 0:00:12.5]} 31. Rxg7 {[%clk 0:01:04.9]} 31... Bd5 {[%clk 0:00:11.2]} 32.
Rd7 {[%clk 0:01:04]} 32... Bb3 {[%clk 0:00:10.2]} 33. Rd6 {[%clk 0:00:59.2]}
33... a4 {[%clk 0:00:09.5]} 34. Rcc6 {[%clk 0:00:59.7]} 34... Ka5 {[%clk
0:00:08.2]} 35. Rxb6 {[%clk 0:00:59.5]} 35... Bc4 {[%clk 0:00:08.7]} 36. Rb8
{[%clk 0:00:58.2]} 1-0

[Event "Early-Titled-Tuesday-Blitz-October-03-2023"]
[Site "Chess.com"]
[Date "2023.10.03"]
[Round "7"]
[White "Good_Knight_Kiss"]
[Black "hypert"]
[Result "1-0"]
[WhiteElo "2430"]
[BlackElo "2521"]
[TimeControl "180+1"]
[EndTime "9:18:59 PDT"]
[Termination "Good_Knight_Kiss won by resignation"]

1. e4 {[%clk 0:03:00.9]} 1... e6 {[%clk 0:02:59.4]} 2. d4 {[%clk 0:02:52.9]}
2... d5 {[%clk 0:03:00.3]} 3. Nc3 {[%clk 0:02:40.3]} 3... Bb4 {[%clk 0:02:59.1]}
4. exd5 {[%clk 0:02:38.2]} 4... exd5 {[%clk 0:02:55.9]} 5. Bd3 {[%clk
0:02:37.8]} 5... Nc6 {[%clk 0:02:54.9]} 6. a3 {[%clk 0:02:37.2]} 6... Be7 {[%clk
0:02:52.1]} 7. Bf4 {[%clk 0:02:33]} 7... a6 {[%clk 0:02:49.4]} 8. Nf3 {[%clk
0:02:28.9]} 8... Nf6 {[%clk 0:02:43]} 9. h3 {[%clk 0:02:28]} 9... O-O {[%clk
0:02:42.3]} 10. O-O {[%clk 0:02:27.7]} 10... Bd6 {[%clk 0:02:37.6]} 11. Bg5
{[%clk 0:02:09.7]} 11... Be6 {[%clk 0:02:36.4]} 12. Re1 {[%clk 0:02:04.8]} 12...
h6 {[%clk 0:02:34.2]} 13. Bh4 {[%clk 0:02:03.7]} 13... Be7 {[%clk 0:02:17.4]}
14. Ne2 {[%clk 0:01:43.3]} 14... Nh5 {[%clk 0:02:11.9]} 15. Bxe7 {[%clk
0:01:38.5]} 15... Qxe7 {[%clk 0:02:12.8]} 16. Qd2 {[%clk 0:01:31.6]} 16... Qd6
{[%clk 0:02:11.7]} 17. c3 {[%clk 0:01:25.2]} 17... Rfe8 {[%clk 0:02:04.8]} 18.
b4 {[%clk 0:01:24.1]} 18... f6 {[%clk 0:01:49.2]} 19. a4 {[%clk 0:01:22.7]}
19... g5 {[%clk 0:01:47.7]} 20. Bg6 {[%clk 0:01:16.4]} 20... Bf7 {[%clk
0:01:47.2]} 21. Bxf7+ {[%clk 0:01:04.1]} 21... Kxf7 {[%clk 0:01:48.1]} 22. Qd3
{[%clk 0:01:03.1]} 22... Ng7 {[%clk 0:01:42.5]} 23. Ng3 {[%clk 0:00:59.2]} 23...
h5 {[%clk 0:01:37.9]} 24. Nf5 {[%clk 0:00:51.4]} 24... Qd7 {[%clk 0:01:27.9]}
25. Nh6+ {[%clk 0:00:44.4]} 25... Kf8 {[%clk 0:01:27]} 26. Qh7 {[%clk
0:00:44.5]} 26... Re4 {[%clk 0:00:40.7]} 27. Qg8+ {[%clk 0:00:35.3]} 27... Ke7
{[%clk 0:00:40.2]} 28. Qxg7+ {[%clk 0:00:32.9]} 28... Kd6 {[%clk 0:00:39.9]} 29.
Qxf6+ {[%clk 0:00:27.8]} 29... Qe6 {[%clk 0:00:36.5]} 30. Qxe6+ {[%clk
0:00:16.8]} 30... Kxe6 {[%clk 0:00:34.4]} 31. Nxg5+ {[%clk 0:00:16.4]} 1-0

[Event "Early-Titled-Tuesday-Blitz-October-03-2023"]
[Site "Chess.com"]
[Date "2023.10.03"]
[Round "7"]
[White "GradualismUnleashed"]
[Black "Man-Chuk"]
[Result "0-1"]
[WhiteElo "2621"]
[BlackElo "2784"]
[TimeControl "180+1"]
[EndTime "9:19:04 PDT"]
[Termination "Man-Chuk won by resignation"]

1. e4 {[%clk 0:03:00.9]} 1... c5 {[%clk 0:02:58.4]} 2. Nf3 {[%clk 0:03:01.2]}
2... d6 {[%clk 0:02:58.2]} 3. d4 {[%clk 0:03:01.8]} 3... cxd4 {[%clk 0:02:58.6]}
4. Nxd4 {[%clk 0:03:02.7]} 4... Nf6 {[%clk 0:02:58.7]} 5. Nc3 {[%clk 0:03:03.4]}
5... Nc6 {[%clk 0:02:59]} 6. Bg5 {[%clk 0:03:03.5]} 6... e6 {[%clk 0:02:57.1]}
7. Qd2 {[%clk 0:03:03.8]} 7... a6 {[%clk 0:02:50.1]} 8. Nxc6 {[%clk 0:03:03.8]}
8... bxc6 {[%clk 0:02:50.2]} 9. O-O-O {[%clk 0:03:04.2]} 9... Qa5 {[%clk
0:02:34.5]} 10. Bc4 {[%clk 0:02:53.8]} 10... d5 {[%clk 0:02:29.3]} 11. Bxf6
{[%clk 0:02:35.1]} 11... gxf6 {[%clk 0:02:28.5]} 12. exd5 {[%clk 0:02:25.1]}
12... cxd5 {[%clk 0:02:27.8]} 13. Bb3 {[%clk 0:01:47]} 13... Bb4 {[%clk
0:02:19.1]} 14. Rhe1 {[%clk 0:01:36.8]} 14... Bxc3 {[%clk 0:02:14.7]} 15. bxc3
{[%clk 0:01:37]} 15... Bb7 {[%clk 0:01:36.1]} 16. Qd4 {[%clk 0:01:20.9]} 16...
Ke7 {[%clk 0:01:27.8]} 17. f4 {[%clk 0:01:08]} 17... Rhc8 {[%clk 0:01:22.6]} 18.
Qb4+ {[%clk 0:01:05.5]} 18... Qxb4 {[%clk 0:01:17]} 19. cxb4 {[%clk 0:01:06.4]}
19... f5 {[%clk 0:01:00.1]} 20. Kb2 {[%clk 0:00:56.3]} 20... a5 {[%clk
0:00:59.1]} 21. a3 {[%clk 0:00:55.6]} 21... Kf6 {[%clk 0:00:54.7]} 22. g3 {[%clk
0:00:51.2]} 22... Rc7 {[%clk 0:00:52.8]} 23. Rd4 {[%clk 0:00:49.8]} 23... a4
{[%clk 0:00:50.7]} 24. Ba2 {[%clk 0:00:47.3]} 24... Rac8 {[%clk 0:00:50.8]} 25.
Re2 {[%clk 0:00:38.4]} 25... Ba6 {[%clk 0:00:50.8]} 26. Red2 {[%clk 0:00:30.4]}
26... h5 {[%clk 0:00:48.5]} 27. Rf2 {[%clk 0:00:23.1]} 27... Rc3 {[%clk
0:00:47.4]} 28. Rdd2 {[%clk 0:00:22.1]} 28... Re3 {[%clk 0:00:44.7]} 29. Bb1
{[%clk 0:00:18.7]} 29... Rcc3 {[%clk 0:00:44.3]} 30. Rd4 {[%clk 0:00:17.9]}
30... Bb5 {[%clk 0:00:39]} 31. Kc1 {[%clk 0:00:16.3]} 31... Rxa3 {[%clk
0:00:37.6]} 32. Kd1 {[%clk 0:00:16.9]} 32... Ra1 {[%clk 0:00:34.4]} 33. Kd2
{[%clk 0:00:16.7]} 33... Re4 {[%clk 0:00:33.9]} 34. Rxe4 {[%clk 0:00:15.9]}
34... fxe4 {[%clk 0:00:34.8]} 35. Kc1 {[%clk 0:00:16.4]} 35... a3 {[%clk
0:00:34.2]} 0-1

[Event "Early-Titled-Tuesday-Blitz-October-03-2023"]
[Site "Chess.com"]
[Date "2023.10.03"]
[Round "7"]
[White "slorovel"]
[Black "vasblesk"]
[Result "1/2-1/2"]
[WhiteElo "2497"]
[BlackElo "2687"]
[TimeControl "180+1"]
[EndTime "9:19:06 PDT"]
[Termination "Game drawn by agreement"]

1. e4 {[%clk 0:03:00.9]} 1... c5 {[%clk 0:02:59.1]} 2. Nf3 {[%clk 0:02:59.5]}
2... g6 {[%clk 0:02:59.5]} 3. c3 {[%clk 0:02:57.3]} 3... Bg7 {[%clk 0:02:59.2]}
4. d4 {[%clk 0:02:57.1]} 4... cxd4 {[%clk 0:03:00.1]} 5. cxd4 {[%clk 0:02:57.5]}
5... d5 {[%clk 0:03:00.8]} 6. e5 {[%clk 0:02:58.1]} 6... Nh6 {[%clk 0:03:01.4]}
7. Nc3 {[%clk 0:02:56.7]} 7... O-O {[%clk 0:03:00]} 8. Bxh6 {[%clk 0:02:55.1]}
8... Bxh6 {[%clk 0:02:59.4]} 9. Bd3 {[%clk 0:02:56]} 9... Nc6 {[%clk 0:02:58.5]}
10. O-O {[%clk 0:02:56.6]} 10... Bg4 {[%clk 0:02:56.5]} 11. Be2 {[%clk
0:02:56.8]} 11... e6 {[%clk 0:02:55.3]} 12. Qd3 {[%clk 0:02:51.8]} 12... Bg7
{[%clk 0:02:40.9]} 13. Rfd1 {[%clk 0:02:40.5]} 13... a6 {[%clk 0:02:37.7]} 14.
h3 {[%clk 0:02:39.1]} 14... Bxf3 {[%clk 0:02:36.5]} 15. Qxf3 {[%clk 0:02:39.2]}
15... b5 {[%clk 0:02:28.7]} 16. Rac1 {[%clk 0:02:29.8]} 16... Qb6 {[%clk
0:02:26]} 17. Qe3 {[%clk 0:02:26.6]} 17... Rac8 {[%clk 0:02:21.1]} 18. h4 {[%clk
0:02:25.1]} 18... Ne7 {[%clk 0:02:12.8]} 19. Bg4 {[%clk 0:02:23.9]} 19... h5
{[%clk 0:02:11.5]} 20. Bh3 {[%clk 0:02:24.3]} 20... Rc4 {[%clk 0:02:04.4]} 21.
b3 {[%clk 0:02:22.6]} 21... Rc7 {[%clk 0:02:03.3]} 22. Ne2 {[%clk 0:02:15.3]}
22... Rfc8 {[%clk 0:01:59.9]} 23. Rxc7 {[%clk 0:02:14.9]} 23... Rxc7 {[%clk
0:02:00.8]} 24. Rc1 {[%clk 0:02:15.3]} 24... Qb8 {[%clk 0:01:58.8]} 25. g4
{[%clk 0:02:06.2]} 25... hxg4 {[%clk 0:01:54.8]} 26. Bxg4 {[%clk 0:02:07.1]}
26... Qc8 {[%clk 0:01:51.5]} 27. h5 {[%clk 0:02:03.4]} 27... gxh5 {[%clk
0:01:45]} 28. Rxc7 {[%clk 0:02:01.9]} 28... Qxc7 {[%clk 0:01:43.7]} 29. Bxh5
{[%clk 0:02:02.3]} 29... Nf5 {[%clk 0:01:43.3]} 30. Qg5 {[%clk 0:02:00.7]} 30...
Kf8 {[%clk 0:01:36.5]} 31. Bg4 {[%clk 0:01:56.5]} 31... Qe7 {[%clk 0:01:24.2]}
32. Qh5 {[%clk 0:01:49.3]} 32... Nh6 {[%clk 0:01:12.7]} 33. Nf4 {[%clk
0:01:45.8]} 33... Nxg4 {[%clk 0:01:07.9]} 34. Qxg4 {[%clk 0:01:44.8]} 34... Bh6
{[%clk 0:01:07.6]} 35. Nh5 {[%clk 0:01:35.6]} 35... Qg5 {[%clk 0:01:05.4]} 36.
Qxg5 {[%clk 0:01:35.3]} 36... Bxg5 {[%clk 0:01:06.3]} 37. f4 {[%clk 0:01:34.3]}
37... Bh4 {[%clk 0:01:03.3]} 38. Kg2 {[%clk 0:01:28.6]} 38... Ke7 {[%clk
0:00:58.2]} 39. Kf3 {[%clk 0:01:27.7]} 39... f5 {[%clk 0:00:57.2]} 40. Ng3
{[%clk 0:01:22.3]} 40... Kd7 {[%clk 0:00:52]} 41. Ne2 {[%clk 0:01:19.7]} 41...
Be1 {[%clk 0:00:51.1]} 42. Ke3 {[%clk 0:01:16.8]} 42... Bb4 {[%clk 0:00:48.1]}
43. Kd3 {[%clk 0:01:14.4]} 43... Kc6 {[%clk 0:00:47.3]} 44. Ng3 {[%clk
0:01:12.5]} 44... a5 {[%clk 0:00:43.5]} 45. Nh5 {[%clk 0:01:08.1]} 45... Be7
{[%clk 0:00:37]} 46. a4 {[%clk 0:01:02.2]} 46... bxa4 {[%clk 0:00:29.9]} 47.
bxa4 {[%clk 0:01:01.9]} 47... Bh4 {[%clk 0:00:28.6]} 48. Ke2 {[%clk 0:01:00.4]}
48... Kd7 {[%clk 0:00:28.1]} 49. Kf3 {[%clk 0:01:00.6]} 49... Ke7 {[%clk
0:00:27.7]} 50. Ng3 {[%clk 0:01:00.8]} 50... Bxg3 {[%clk 0:00:27.4]} 51. Kxg3
{[%clk 0:01:01]} 51... Kf7 {[%clk 0:00:27.7]} 52. Kh3 {[%clk 0:00:56.9]} 52...
Kg6 {[%clk 0:00:28.1]} 53. Kg3 {[%clk 0:00:55.4]} 1/2-1/2

[Event "Early-Titled-Tuesday-Blitz-October-03-2023"]
[Site "Chess.com"]
[Date "2023.10.03"]
[Round "7"]
[White "ezkybel"]
[Black "chesslh19"]
[Result "1-0"]
[WhiteElo "2479"]
[BlackElo "2326"]
[TimeControl "180+1"]
[EndTime "9:19:08 PDT"]
[Termination "ezkybel won by resignation"]

1. e4 {[%clk 0:03:00.9]} 1... e5 {[%clk 0:03:00.2]} 2. Nf3 {[%clk 0:02:59.8]}
2... Nf6 {[%clk 0:03:00.9]} 3. Nxe5 {[%clk 0:02:58.7]} 3... d6 {[%clk
0:03:01.3]} 4. Nf3 {[%clk 0:02:59.2]} 4... Nxe4 {[%clk 0:03:01.6]} 5. Nc3 {[%clk
0:03:00.1]} 5... Nxc3 {[%clk 0:03:01.8]} 6. dxc3 {[%clk 0:02:58.8]} 6... Be7
{[%clk 0:03:02.7]} 7. Bf4 {[%clk 0:02:54]} 7... Nc6 {[%clk 0:03:03]} 8. Qd2
{[%clk 0:02:52.2]} 8... Be6 {[%clk 0:03:03.9]} 9. O-O-O {[%clk 0:02:48.5]} 9...
Qd7 {[%clk 0:03:01.5]} 10. Kb1 {[%clk 0:02:47.1]} 10... O-O-O {[%clk 0:02:54.6]}
11. h4 {[%clk 0:02:31.1]} 11... h6 {[%clk 0:02:51.6]} 12. Bb5 {[%clk 0:02:24.7]}
12... a6 {[%clk 0:02:47.3]} 13. Ba4 {[%clk 0:02:17.5]} 13... Bf6 {[%clk
0:02:46.6]} 14. Nd4 {[%clk 0:02:13.8]} 14... Bxd4 {[%clk 0:02:44.7]} 15. cxd4
{[%clk 0:02:14.4]} 15... b5 {[%clk 0:02:40.1]} 16. Bb3 {[%clk 0:02:05.3]} 16...
Bxb3 {[%clk 0:02:37.2]} 17. cxb3 {[%clk 0:01:58.7]} 17... d5 {[%clk 0:02:35.7]}
18. Rc1 {[%clk 0:01:53]} 18... Kb7 {[%clk 0:02:33.8]} 19. Rc5 {[%clk 0:01:50.4]}
19... Rhe8 {[%clk 0:02:19.7]} 20. Rhc1 {[%clk 0:01:45.9]} 20... Qf5+ {[%clk
0:02:18.1]} 21. Ka1 {[%clk 0:01:42.5]} 21... Re6 {[%clk 0:02:17.8]} 22. a4
{[%clk 0:01:17]} 22... bxa4 {[%clk 0:02:00.9]} 23. bxa4 {[%clk 0:01:06.1]} 23...
Qe4 {[%clk 0:01:37.8]} 24. Be3 {[%clk 0:01:01.6]} 24... Rd7 {[%clk 0:00:55]} 25.
Qc3 {[%clk 0:00:52.5]} 25... Rdd6 {[%clk 0:00:35.5]} 26. b4 {[%clk 0:00:47.7]}
26... a5 {[%clk 0:00:06.7]} 27. b5 {[%clk 0:00:46.3]} 27... Nb4 {[%clk
0:00:06.8]} 28. Rxc7+ {[%clk 0:00:45.8]} 28... Ka8 {[%clk 0:00:05.5]} 29. Rc8+
{[%clk 0:00:32.6]} 1-0

[Event "Early-Titled-Tuesday-Blitz-October-03-2023"]
[Site "Chess.com"]
[Date "2023.10.03"]
[Round "7"]
[White "kidagent"]
[Black "Magila31"]
[Result "1-0"]
[WhiteElo "2275"]
[BlackElo "2395"]
[TimeControl "180+1"]
[EndTime "9:19:09 PDT"]
[Termination "kidagent won by checkmate"]

1. c4 {[%clk 0:03:00.9]} 1... g6 {[%clk 0:02:58.1]} 2. g3 {[%clk 0:03:00]} 2...
Bg7 {[%clk 0:02:58]} 3. Bg2 {[%clk 0:03:00]} 3... Nf6 {[%clk 0:02:58]} 4. Nf3
{[%clk 0:02:58.3]} 4... O-O {[%clk 0:02:57.9]} 5. Nc3 {[%clk 0:02:56.4]} 5... c6
{[%clk 0:02:57.3]} 6. e4 {[%clk 0:02:55]} 6... d6 {[%clk 0:02:55.6]} 7. O-O
{[%clk 0:02:53.6]} 7... e5 {[%clk 0:02:50.5]} 8. d4 {[%clk 0:02:47.3]} 8... Nbd7
{[%clk 0:02:43]} 9. Be3 {[%clk 0:02:38.8]} 9... Ng4 {[%clk 0:02:35.1]} 10. Bg5
{[%clk 0:02:28.5]} 10... Qb6 {[%clk 0:02:29.5]} 11. Be7 {[%clk 0:02:14.2]} 11...
Re8 {[%clk 0:02:27.5]} 12. Bxd6 {[%clk 0:02:14.7]} 12... exd4 {[%clk 0:02:21.8]}
13. Na4 {[%clk 0:02:11.6]} 13... Qa5 {[%clk 0:01:47.7]} 14. h3 {[%clk
0:02:06.5]} 14... Nge5 {[%clk 0:01:44.4]} 15. Nxe5 {[%clk 0:01:57.8]} 15... Nxe5
{[%clk 0:01:31.4]} 16. b3 {[%clk 0:01:48.3]} 16... d3 {[%clk 0:00:59.7]} 17. Rc1
{[%clk 0:01:44.9]} 17... b5 {[%clk 0:00:55.2]} 18. cxb5 {[%clk 0:01:37.4]} 18...
cxb5 {[%clk 0:00:54.9]} 19. Nc5 {[%clk 0:01:33.5]} 19... Qxa2 {[%clk 0:00:47.8]}
20. f4 {[%clk 0:01:24.1]} 20... Nc6 {[%clk 0:00:37.5]} 21. e5 {[%clk 0:01:17.8]}
21... Nd4 {[%clk 0:00:30.4]} 22. Bxa8 {[%clk 0:01:16.2]} 22... Ne2+ {[%clk
0:00:30.5]} 23. Kg2 {[%clk 0:00:57.7]} 23... Nxc1+ {[%clk 0:00:19.8]} 24. Rf2
{[%clk 0:00:57.3]} 24... Qb1 {[%clk 0:00:14.5]} 25. Bc6 {[%clk 0:00:52.5]} 25...
Rd8 {[%clk 0:00:11.1]} 26. Be4 {[%clk 0:00:44.1]} 26... Bf5 {[%clk 0:00:10.6]}
27. Bxf5 {[%clk 0:00:40.1]} 27... gxf5 {[%clk 0:00:10.9]} 28. Rd2 {[%clk
0:00:40.7]} 28... a5 {[%clk 0:00:07.6]} 29. Nxd3 {[%clk 0:00:40]} 29... Nxb3
{[%clk 0:00:04.1]} 30. Qxb1 {[%clk 0:00:39]} 30... Nxd2 {[%clk 0:00:04.4]} 31.
Qxb5 {[%clk 0:00:38.4]} 31... Ne4 {[%clk 0:00:04.2]} 32. Qb6 {[%clk 0:00:37.4]}
32... Rc8 {[%clk 0:00:04.4]} 33. Qxa5 {[%clk 0:00:37.2]} 33... Rc2+ {[%clk
0:00:04.2]} 34. Kf1 {[%clk 0:00:37.4]} 34... Rd2 {[%clk 0:00:03.2]} 35. Qd8+
{[%clk 0:00:37.2]} 35... Bf8 {[%clk 0:00:03.2]} 36. Qxf8# {[%clk 0:00:37.8]} 1-0

[Event "Early-Titled-Tuesday-Blitz-October-03-2023"]
[Site "Chess.com"]
[Date "2023.10.03"]
[Round "7"]
[White "AbdulovOrkhan"]
[Black "hurricane7791"]
[Result "0-1"]
[WhiteElo "2554"]
[BlackElo "2713"]
[TimeControl "180+1"]
[EndTime "9:19:10 PDT"]
[Termination "hurricane7791 won by resignation"]

1. e4 {[%clk 0:03:00.9]} 1... c5 {[%clk 0:03:00.1]} 2. Nf3 {[%clk 0:03:00.1]}
2... d6 {[%clk 0:03:00.6]} 3. c3 {[%clk 0:03:00.2]} 3... Nf6 {[%clk 0:03:00]} 4.
Bd3 {[%clk 0:03:00.4]} 4... Nbd7 {[%clk 0:03:00]} 5. O-O {[%clk 0:03:00.6]} 5...
b6 {[%clk 0:03:00]} 6. Bc2 {[%clk 0:03:00.1]} 6... Bb7 {[%clk 0:03:00.6]} 7. Re1
{[%clk 0:03:00.3]} 7... e6 {[%clk 0:02:59.5]} 8. d4 {[%clk 0:02:59.9]} 8... Be7
{[%clk 0:03:00.2]} 9. Bf4 {[%clk 0:02:58]} 9... a6 {[%clk 0:02:57.9]} 10. Nbd2
{[%clk 0:02:56.3]} 10... O-O {[%clk 0:02:57.9]} 11. Nc4 {[%clk 0:02:52.3]} 11...
Qc7 {[%clk 0:02:53.1]} 12. Nxd6 {[%clk 0:02:44.3]} 12... Bxd6 {[%clk 0:02:52.3]}
13. e5 {[%clk 0:02:44.9]} 13... Be7 {[%clk 0:02:25.2]} 14. exf6 {[%clk 0:02:43]}
14... Qxf4 {[%clk 0:02:25.8]} 15. fxe7 {[%clk 0:02:43.3]} 15... Rfe8 {[%clk
0:02:26.5]} 16. dxc5 {[%clk 0:02:29]} 16... Nxc5 {[%clk 0:02:26.6]} 17. b4
{[%clk 0:02:28]} 17... Ne4 {[%clk 0:02:22.9]} 18. Qd7 {[%clk 0:02:17.4]} 18...
Rab8 {[%clk 0:02:18]} 19. Rad1 {[%clk 0:02:03.2]} 19... Nf6 {[%clk 0:02:14.6]}
20. Qd4 {[%clk 0:01:46.1]} 20... Qxd4 {[%clk 0:02:06.6]} 21. Nxd4 {[%clk
0:01:46.9]} 21... Rxe7 {[%clk 0:02:06]} 22. c4 {[%clk 0:01:42]} 22... Rc7 {[%clk
0:02:01.8]} 23. Bb3 {[%clk 0:01:38.7]} 23... Rbc8 {[%clk 0:02:00.3]} 24. a4
{[%clk 0:01:29.6]} 24... Kf8 {[%clk 0:01:57.2]} 25. Rc1 {[%clk 0:01:22]} 25...
Ne4 {[%clk 0:01:55.2]} 26. Re2 {[%clk 0:01:15.9]} 26... Rd7 {[%clk 0:01:46.9]}
27. Nf3 {[%clk 0:01:11.7]} 27... a5 {[%clk 0:01:45.9]} 28. Ne5 {[%clk
0:01:03.4]} 28... Rd4 {[%clk 0:01:26.7]} 29. f3 {[%clk 0:00:58.8]} 29... Nd2
{[%clk 0:01:22]} 30. Ba2 {[%clk 0:00:41.7]} 30... axb4 {[%clk 0:01:17.7]} 31. a5
{[%clk 0:00:41.6]} 31... bxa5 {[%clk 0:01:14.7]} 32. c5 {[%clk 0:00:42]} 32...
b3 {[%clk 0:01:08.8]} 33. Bb1 {[%clk 0:00:41.2]} 33... Ba6 {[%clk 0:01:00]} 34.
Ree1 {[%clk 0:00:37.5]} 34... a4 {[%clk 0:00:56.5]} 35. c6 {[%clk 0:00:37.3]}
35... Nxb1 {[%clk 0:00:48]} 36. Rxb1 {[%clk 0:00:35.2]} 36... f6 {[%clk
0:00:48.3]} 37. Nd7+ {[%clk 0:00:33.2]} 37... Ke7 {[%clk 0:00:46.7]} 38. Rbc1
{[%clk 0:00:27.6]} 38... b2 {[%clk 0:00:41.1]} 39. Rc3 {[%clk 0:00:26.8]} 39...
Rxd7 {[%clk 0:00:39.2]} 0-1

[Event "Early-Titled-Tuesday-Blitz-October-03-2023"]
[Site "Chess.com"]
[Date "2023.10.03"]
[Round "7"]
[White "Javylavilla"]
[Black "Antik5"]
[Result "1-0"]
[WhiteElo "2380"]
[BlackElo "2486"]
[TimeControl "180+1"]
[EndTime "9:19:10 PDT"]
[Termination "Javylavilla won on time"]

1. e4 {[%clk 0:03:00.9]} 1... c6 {[%clk 0:03:00.3]} 2. c4 {[%clk 0:03:00.6]}
2... d5 {[%clk 0:03:00.4]} 3. cxd5 {[%clk 0:03:01.5]} 3... cxd5 {[%clk 0:03:01]}
4. exd5 {[%clk 0:03:02.4]} 4... Nf6 {[%clk 0:02:58.1]} 5. Qa4+ {[%clk
0:03:02.1]} 5... Nbd7 {[%clk 0:02:46.3]} 6. Nc3 {[%clk 0:03:01.1]} 6... g6
{[%clk 0:02:41.7]} 7. Nf3 {[%clk 0:03:00.6]} 7... Bg7 {[%clk 0:02:42.2]} 8. Bc4
{[%clk 0:03:00.3]} 8... O-O {[%clk 0:02:42.3]} 9. O-O {[%clk 0:02:59.8]} 9...
Nb6 {[%clk 0:02:24.3]} 10. Qb3 {[%clk 0:02:58.4]} 10... Nxc4 {[%clk 0:02:18.8]}
11. Qxc4 {[%clk 0:02:59.3]} 11... b6 {[%clk 0:02:16.2]} 12. Ne5 {[%clk
0:02:56.7]} 12... Bb7 {[%clk 0:02:06.7]} 13. Nc6 {[%clk 0:02:56.4]} 13... Qd7
{[%clk 0:01:46.1]} 14. d4 {[%clk 0:02:46]} 14... e6 {[%clk 0:01:17.8]} 15. Ne5
{[%clk 0:02:39.4]} 15... Bxd5 {[%clk 0:01:17.7]} 16. Nxd7 {[%clk 0:02:25.7]}
16... Bxc4 {[%clk 0:01:16.1]} 17. Nxf8 {[%clk 0:02:26.6]} 17... Bxf1 {[%clk
0:01:09.4]} 18. Kxf1 {[%clk 0:02:27.5]} 18... Kxf8 {[%clk 0:01:06.3]} 19. Bf4
{[%clk 0:02:26]} 19... Rd8 {[%clk 0:00:59.3]} 20. Be5 {[%clk 0:02:18.9]} 20...
Ng4 {[%clk 0:00:48.8]} 21. Bxg7+ {[%clk 0:02:15.3]} 21... Kxg7 {[%clk
0:00:49.7]} 22. h3 {[%clk 0:02:15.7]} 22... Nf6 {[%clk 0:00:47.2]} 23. Rd1
{[%clk 0:02:15.9]} 23... Kf8 {[%clk 0:00:37.3]} 24. Ke2 {[%clk 0:02:15.3]} 24...
Ke7 {[%clk 0:00:37.3]} 25. Ke3 {[%clk 0:02:15.3]} 25... h5 {[%clk 0:00:37.8]}
26. Kf4 {[%clk 0:02:09.1]} 26... a6 {[%clk 0:00:35.9]} 27. Ke3 {[%clk
0:01:47.8]} 27... b5 {[%clk 0:00:35.2]} 28. Rc1 {[%clk 0:01:47.8]} 28... h4
{[%clk 0:00:21.8]} 29. Ne2 {[%clk 0:01:47.6]} 29... Nd5+ {[%clk 0:00:21.6]} 30.
Ke4 {[%clk 0:01:46.8]} 30... Kd6 {[%clk 0:00:21.1]} 31. Nf4 {[%clk 0:01:38.2]}
31... f5+ {[%clk 0:00:20.8]} 32. Kf3 {[%clk 0:01:37.8]} 32... g5 {[%clk
0:00:18.1]} 33. Nd3 {[%clk 0:01:34]} 33... Rg8 {[%clk 0:00:11.7]} 34. Ne5 {[%clk
0:01:32.7]} 34... Ne7 {[%clk 0:00:09.9]} 35. Re1 {[%clk 0:01:15.1]} 35... Kd5
{[%clk 0:00:10]} 36. Nd7 {[%clk 0:01:09]} 36... Kxd4 {[%clk 0:00:08.9]} 37. Rxe6
{[%clk 0:01:08]} 37... Nd5 {[%clk 0:00:07.8]} 38. Rd6 {[%clk 0:01:07.7]} 38...
g4+ {[%clk 0:00:08.1]} 39. hxg4 {[%clk 0:01:07.2]} 39... fxg4+ {[%clk 0:00:09]}
40. Ke2 {[%clk 0:01:07.2]} 40... Ke4 {[%clk 0:00:07.3]} 41. Rxd5 {[%clk
0:01:05.9]} 41... h3 {[%clk 0:00:04.2]} 42. gxh3 {[%clk 0:00:57.5]} 42... gxh3
{[%clk 0:00:03.2]} 43. Nf6+ {[%clk 0:00:57.4]} 43... Kf4 {[%clk 0:00:03.2]} 44.
Nxg8 {[%clk 0:00:57.3]} 1-0